fUST/lending_fUST_20250225
["ID","MTS","AMOUNT","RATE_DAILY","PERIOD"]
[354348765,1740438664972,-500.0,0.00014356,2]
[354348766,1740438664982,-507.19303599,0.00014356,2]
[354348767,1740438664992,-500.0,0.00014356,2]
[354348768,1740438665002,-500.0,0.00014356,2]
[354348769,1740438665011,-500.0,0.00014356,2]
[354348770,1740438665022,-500.0,0.00014356,2]
[354348771,1740438665036,-500.0,0.00014356,2]
[354348772,1740438665046,-500.0,0.00014356,2]
[354348773,1740438665055,-500.0,0.00014356,2]
[354348774,1740438665064,-500.0,0.00014356,2]
[354348775,1740438665075,-579.61,0.00014356,2]
[354348776,1740438665084,-500.0,0.00014356,2]
[354348777,1740438665094,-500.0,0.00014356,2]
[354348778,1740438665103,-622.33,0.00014356,2]
[354348779,1740438665113,-500.0,0.00014356,2]
[354348780,1740438665123,-500.0,0.00014356,2]
[354348781,1740438665132,-500.0,0.00014356,2]
[354348782,1740438665142,-500.0,0.00014356,2]
[354348783,1740438665151,-500.0,0.00014356,2]
[354348784,1740438665160,-500.0,0.00014356,2]
[354348785,1740438665182,-500.0,0.00014356,2]
[354348786,1740438665195,-151.0,0.00014356,2]
[354348787,1740438665205,-151.0,0.00014356,2]
[354348788,1740438665216,-500.0,0.00014356,2]
[354348789,1740438665226,-508.27051944,0.00014356,2]
[354348790,1740438665237,-500.0,0.00014356,2]
[354348791,1740438665247,-947.21,0.00014356,2]
[354348792,1740438665258,-151.0,0.00014356,2]
[354348793,1740438665269,-500.0,0.00014356,2]
[354348794,1740438665279,-500.0,0.00014356,2]
[354348795,1740438665289,-329.15,0.00014356,2]
[354348796,1740438665300,-695.76,0.00014356,2]
[354348797,1740438665310,-500.0,0.00014356,2]
[354348798,1740438665320,-500.0,0.00014356,2]
[354348799,1740438665330,-500.0,0.00014356,2]
[354348800,1740438665340,-500.0,0.00014356,2]
[354348801,1740438665350,-500.0,0.00014356,2]
[354348802,1740438665360,-500.0,0.00014356,2]
[354348803,1740438665370,-642.26,0.00014356,2]
[354348804,1740438665380,-500.0,0.00014356,2]
[354348805,1740438665391,-500.0,0.00014356,2]
[354348806,1740438665400,-500.0,0.00014356,2]
[354348807,1740438665410,-500.0,0.00014356,2]
[354348808,1740438665421,-500.0,0.00014356,2]
[354348809,1740438665431,-500.0,0.00014356,2]
[354348810,1740438665440,-500.0,0.00014356,2]
[354348811,1740438665450,-3140.89,0.00014356,2]
[354348812,1740438665460,-5059.98,0.00014356,2]
[354348813,1740438665470,-36606.72,0.00014356,2]
[354348814,1740438665481,-618.53,0.00014356,2]
[354348815,1740438665490,-504.78,0.00014356,2]
[354348816,1740438665500,-1443.33,0.00014356,2]
[354348817,1740438665510,-247.52191746,0.00014356,2]
[354348818,1740438665520,-500.0,0.00014356,2]
[354348819,1740438665530,-567.72,0.00014356,2]
[354348820,1740438665540,-500.0,0.00014356,2]
[354348821,1740438665550,-500.0,0.00014356,2]
[354348822,1740438665560,-2659.86,0.00014356,2]
[354348823,1740438665569,-500.0,0.00014356,2]
[354348824,1740438665579,-500.0,0.00014356,2]
[354348825,1740438665589,-444.36,0.00014356,2]
[354348826,1740438665600,-500.0,0.00014356,2]
[354348827,1740438665610,-500.0,0.00014356,2]
[354348828,1740438665620,-1173.9,0.00014356,2]
[354348829,1740438665630,-1578.42,0.00014356,2]
[354348830,1740438665640,-761.51,0.00014356,2]
[354348831,1740438665650,-506.95559335,0.00014356,2]
[354348832,1740438665660,-500.0,0.00014356,2]
[354348833,1740438665670,-500.0,0.00014356,2]
[354348834,1740438665679,-807.98,0.00014356,2]
[354348835,1740438665689,-500.0,0.00014356,2]
[354348836,1740438665699,-500.0,0.00014356,2]
[354348837,1740438665708,-3916.14,0.00014356,2]
[354348838,1740438665718,-9439.32,0.00014356,2]
[354348839,1740438665728,-500.0,0.00014356,2]
[354348840,1740438665738,-500.0,0.00014356,2]
[354348841,1740438665748,-500.0,0.00014356,2]
[354348842,1740438665758,-649.39,0.00014356,2]
[354348843,1740438665768,-824.14,0.00014356,2]
[354348844,1740438665777,-886.14,0.00014356,2]
[354348845,1740438665787,-663.35,0.00014356,2]
[354348846,1740438665797,-500.0,0.00014356,2]
[354348847,1740438665807,-725.8,0.00014356,2]
[354348848,1740438665817,-500.0,0.00014356,2]
[354348849,1740438665827,-500.0,0.00014356,2]
[354348850,1740438665838,-500.0,0.00014356,2]
[354348851,1740438665848,-11569.59,0.00014356,2]
[354348852,1740438665858,-500.0,0.00014356,2]
[354348853,1740438665868,-500.0,0.00014356,2]
[354348854,1740438665878,-500.0,0.00014356,2]
[354348855,1740438665888,-500.0,0.00014356,2]
[354348856,1740438665898,-1037.02,0.00014356,2]
[354348857,1740438665908,-500.0,0.00014356,2]
[354348858,1740438665918,-500.0,0.00014356,2]
[354348859,1740438665927,-520.28,0.00014356,2]
[354348860,1740438666061,-500.0,0.00014356,2]
[354348861,1740438666072,-500.0,0.00014356,2]
[354348862,1740438666083,-2568.48,0.00014356,2]
[354348863,1740438666093,-500.0,0.00014356,2]
[354348864,1740438666104,-500.0,0.00014356,2]
[354348865,1740438666114,-569.69,0.00014356,2]
[354348866,1740438666124,-2001.57,0.00014356,2]
[354348867,1740438666133,-500.0,0.00014356,2]
[354348868,1740438666144,-500.0,0.00014356,2]
[354348869,1740438666154,-500.0,0.00014356,2]
[354348870,1740438666163,-1066.8,0.00014356,2]
[354348871,1740438666173,-500.0,0.00014356,2]
[354348872,1740438666182,-1179.01,0.00014356,2]
[354348873,1740438666192,-914.26,0.00014356,2]
[354348874,1740438666201,-554.2,0.00014356,2]
[354348875,1740438666211,-500.0,0.00014356,2]
[354348876,1740438666220,-4845.71,0.00014356,2]
[354348877,1740438666231,-1651.45,0.00014356,2]
[354348878,1740438666241,-500.0,0.00014356,2]
[354348879,1740438666252,-500.0,0.00014356,2]
[354348880,1740438666261,-640.92,0.00014356,2]
[354348881,1740438666271,-629.83,0.00014356,2]
[354348882,1740438666281,-500.0,0.00014356,2]
[354348883,1740438666290,-500.0,0.00014356,2]
[354348884,1740438666300,-500.0,0.00014356,2]
[354348885,1740438666310,-2353.75,0.00014356,2]
[354348886,1740438666320,-500.0,0.00014356,2]
[354348887,1740438666330,-1000.0,0.00014421,2]
[354348888,1740438666340,-1000.0,0.00014421,2]
[354348889,1740438666349,-1000.0,0.00014421,2]
[354348890,1740438666359,-500.0,0.00014438,2]
[354348891,1740438666368,-500.0,0.00014438,2]
[354348892,1740438666378,-570.80636916,0.00014438,2]
[354348893,1740438666389,-500.0,0.00014438,2]
[354348894,1740438666399,-500.0,0.00014438,2]
[354348895,1740438666408,-500.0,0.00014438,2]
[354348896,1740438666418,-500.0,0.00014438,2]
[354348897,1740438666428,-151.0,0.00014438,2]
[354348898,1740438666437,-151.0,0.00014438,2]
[354348899,1740438666447,-500.0,0.00014438,2]
[354348900,1740438666456,-268.77624498,0.00014438,2]
[354348901,1740438666466,-555.51,0.00014438,2]
[354348902,1740438666475,-500.0,0.00014438,2]
[354348903,1740438666485,-500.0,0.00014438,2]
[354348904,1740438666495,-500.0,0.00014438,2]
[354348905,1740438666504,-500.0,0.00014438,2]
[354348906,1740438666514,-500.0,0.00014438,2]
[354348907,1740438666524,-500.0,0.00014438,2]
[354348908,1740438666544,-500.0,0.00014438,2]
[354348909,1740438666568,-500.0,0.00014438,2]
[354348910,1740438666589,-500.0,0.00014438,2]
[354348911,1740438666612,-579.61,0.00014438,2]
[354348912,1740438666636,-500.0,0.00014438,2]
[354348913,1740438666657,-500.0,0.00014438,2]
[354348914,1740438666678,-622.33,0.00014438,2]
[354348915,1740438666695,-500.0,0.00014438,2]
[354348916,1740438666713,-500.0,0.00014438,2]
[354348917,1740438666735,-500.0,0.00014438,2]
[354348918,1740438666759,-500.0,0.00014438,2]
[354348919,1740438666775,-500.0,0.00014438,2]
[354348920,1740438666795,-500.0,0.00014438,2]
[354348921,1740438666814,-500.0,0.00014438,2]
[354348922,1740438666833,-500.0,0.00014438,2]
[354348923,1740438666849,-151.0,0.00014438,2]
[354348924,1740438666866,-278.686533,0.00014438,2]
[354348925,1740438666884,-278.686533,0.00014438,2]
[354348926,1740438666903,-500.0,0.00014438,2]
[354348927,1740438666920,-947.21,0.00014438,2]
[354348928,1740438666938,-500.0,0.00014438,2]
[354348929,1740438666956,-500.0,0.00014438,2]
[354348930,1740438666973,-695.76,0.00014438,2]
[354348931,1740438666991,-500.0,0.00014438,2]
[354348932,1740438667009,-500.0,0.00014438,2]
[354348933,1740438667029,-500.0,0.00014438,2]
[354348934,1740438667050,-500.0,0.00014438,2]
[354348935,1740438667068,-500.0,0.00014438,2]
[354348936,1740438667087,-500.0,0.00014438,2]
[354348937,1740438667104,-642.26,0.00014438,2]
[354348938,1740438667123,-500.0,0.00014438,2]
[354348939,1740438667141,-500.0,0.00014438,2]
[354348940,1740438667158,-500.0,0.00014438,2]
[354348941,1740438667175,-500.0,0.00014438,2]
[354348942,1740438667191,-500.0,0.00014438,2]
[354348943,1740438667209,-500.0,0.00014438,2]
[354348944,1740438667226,-500.0,0.00014438,2]
[354348945,1740438667242,-3140.89,0.00014438,2]
[354348946,1740438667259,-5059.98,0.00014438,2]
[354348947,1740438667276,-36606.72,0.00014438,2]
[354348948,1740438667293,-618.53,0.00014438,2]
[354348949,1740438667308,-504.78,0.00014438,2]
[354348950,1740438667325,-1443.33,0.00014438,2]
[354348951,1740438667342,-500.0,0.00014438,2]
[354348952,1740438667360,-567.72,0.00014438,2]
[354348953,1740438667377,-500.0,0.00014438,2]
[354348954,1740438667396,-500.0,0.00014438,2]
[354348955,1740438667413,-2659.86,0.00014438,2]
[354348956,1740438667430,-500.0,0.00014438,2]
[354348957,1740438667578,-500.0,0.00014438,2]
[354348958,1740438667590,-500.0,0.00014438,2]
[354348959,1740438667600,-500.0,0.00014438,2]
[354348960,1740438667610,-1173.9,0.00014438,2]
[354348961,1740438667621,-1578.42,0.00014438,2]
[354348962,1740438667630,-761.51,0.00014438,2]
[354348963,1740438667641,-511.2091456,0.00014438,2]
[354348964,1740438667650,-500.0,0.00014438,2]
[354348965,1740438667660,-807.98,0.00014438,2]
[354348966,1740438667670,-500.0,0.00014438,2]
[354348967,1740438667679,-3916.14,0.00014438,2]
[354348968,1740438667688,-9439.32,0.00014438,2]
[354348969,1740438667698,-500.0,0.00014438,2]
[354348970,1740438667708,-359.20686578,0.00014438,2]
[354348971,1740438667718,-500.0,0.00014438,2]
[354348972,1740438667728,-649.39,0.00014438,2]
[354348973,1740438667738,-824.14,0.00014438,2]
[354348974,1740438667747,-886.14,0.00014438,2]
[354348975,1740438667756,-663.35,0.00014438,2]
[354348976,1740438667766,-500.0,0.00014438,2]
[354348977,1740438667775,-725.8,0.00014438,2]
[354348978,1740438667785,-500.0,0.00014438,2]
[354348979,1740438667795,-500.0,0.00014438,2]
[354348980,1740438667804,-500.0,0.00014438,2]
[354348981,1740438667814,-11569.59,0.00014438,2]
[354348982,1740438667824,-500.0,0.00014438,2]
[354348983,1740438667833,-500.0,0.00014438,2]
[354348984,1740438667842,-500.0,0.00014438,2]
[354348985,1740438667851,-500.0,0.00014438,2]
[354348986,1740438667861,-1037.02,0.00014438,2]
[354348987,1740438667870,-500.0,0.00014438,2]
[354348988,1740438667880,-520.28,0.00014438,2]
[354348989,1740438667890,-500.0,0.00014438,2]
[354348990,1740438667899,-500.0,0.00014438,2]
[354348991,1740438667909,-2568.48,0.00014438,2]
[354348992,1740438667920,-500.0,0.00014438,2]
[354348993,1740438667929,-500.0,0.00014438,2]
[354348994,1740438667939,-569.69,0.00014438,2]
[354348995,1740438667948,-2001.57,0.00014438,2]
[354348996,1740438667958,-500.0,0.00014438,2]
[354348997,1740438667969,-500.0,0.00014438,2]
[354348998,1740438667978,-500.0,0.00014438,2]
[354348999,1740438667988,-1066.8,0.00014438,2]
[354349000,1740438667997,-500.0,0.00014438,2]
[354349001,1740438668007,-1179.01,0.00014438,2]
[354349002,1740438668017,-914.26,0.00014438,2]
[354349003,1740438668027,-554.2,0.00014438,2]
[354349004,1740438668039,-500.0,0.00014438,2]
[354349005,1740438668048,-4845.71,0.00014438,2]
[354349006,1740438668058,-1651.45,0.00014438,2]
[354349007,1740438668069,-563.359996,0.00014438,2]
[354349008,1740438668079,-500.0,0.00014438,2]
[354349009,1740438668088,-640.92,0.00014438,2]
[354349010,1740438668098,-629.83,0.00014438,2]
[354349011,1740438668109,-500.0,0.00014438,2]
[354349012,1740438668119,-500.0,0.00014438,2]
[354349013,1740438668128,-500.0,0.00014438,2]
[354349014,1740438668138,-2353.75,0.00014438,2]
[354349015,1740438668148,-500.0,0.00014438,2]
[354349016,1740438668157,-1100.0,0.00014438,2]
[354349017,1740438668167,-486.64,0.0001452,2]
[354349018,1740438668177,-500.0,0.0001452,2]
[354349019,1740438668186,-500.0,0.0001452,2]
[354349020,1740438668196,-230.98302328,0.0001452,2]
[354349021,1740438668206,-151.0,0.0001452,2]
[354349022,1740438668216,-500.0,0.0001452,2]
[354349023,1740438668225,-500.0,0.0001452,2]
[354349024,1740438668235,-555.51,0.0001452,2]
[354349025,1740438668245,-503.17323342,0.0001452,2]
[354349026,1740438668255,-500.0,0.0001452,2]
[354349027,1740438668265,-500.0,0.0001452,2]
[354349028,1740438668275,-500.0,0.0001452,2]
[354349029,1740438668284,-500.0,0.0001452,2]
[354349030,1740438668294,-500.0,0.0001452,2]
[354349031,1740438668304,-500.0,0.0001452,2]
[354349032,1740438668313,-480.52915968,0.0001452,2]
[354349033,1740438668323,-500.0,0.0001452,2]
[354349034,1740438668332,-579.61,0.0001452,2]
[354349035,1740438668342,-500.0,0.0001452,2]
[354349036,1740438668352,-500.0,0.0001452,2]
[354349037,1740438668362,-622.33,0.0001452,2]
[354349038,1740438668372,-500.0,0.0001452,2]
[354349039,1740438668382,-500.0,0.0001452,2]
[354349040,1740438668392,-500.0,0.0001452,2]
[354349041,1740438668402,-500.0,0.0001452,2]
[354349042,1740438668412,-500.0,0.0001452,2]
[354349043,1740438668422,-500.0,0.0001452,2]
[354349044,1740438668431,-500.0,0.0001452,2]
[354349045,1740438668441,-500.0,0.0001452,2]
[354349046,1740438668451,-947.21,0.0001452,2]
[354349047,1740438668460,-500.0,0.0001452,2]
[354349048,1740438668470,-500.0,0.0001452,2]
[354349049,1740438668480,-695.76,0.0001452,2]
[354349050,1740438668489,-500.0,0.0001452,2]
[354349051,1740438668499,-500.0,0.0001452,2]
[354349052,1740438668509,-500.0,0.0001452,2]
[354349053,1740438668518,-500.0,0.0001452,2]
[354349054,1740438668529,-500.0,0.0001452,2]
[354349055,1740438668538,-642.26,0.0001452,2]
[354349056,1740438668548,-500.0,0.0001452,2]
[354349057,1740438668558,-500.0,0.0001452,2]
[354349058,1740438668569,-551.37507611,0.0001452,2]
[354349059,1740438668578,-500.0,0.0001452,2]
[354349060,1740438668587,-500.0,0.0001452,2]
[354349061,1740438668597,-3140.89,0.0001452,2]
[354349062,1740438668607,-5059.98,0.0001452,2]
[354349063,1740438668617,-36606.72,0.0001452,2]
[354349064,1740438668626,-618.53,0.0001452,2]
[354349065,1740438668637,-504.78,0.0001452,2]
[354349066,1740438668647,-1443.33,0.0001452,2]
[354349067,1740438668656,-567.72,0.0001452,2]
[354349068,1740438668666,-500.0,0.0001452,2]
[354349069,1740438668676,-500.0,0.0001452,2]
[354349070,1740438668686,-2659.86,0.0001452,2]
[354349071,1740438668696,-500.0,0.0001452,2]
[354349072,1740438668706,-500.0,0.0001452,2]
[354349073,1740438668810,-1173.9,0.0001452,2]
[354349074,1740438668821,-1578.42,0.0001452,2]
[354349075,1740438668832,-761.51,0.0001452,2]
[354349076,1740438668842,-807.98,0.0001452,2]
[354349077,1740438668852,-500.0,0.0001452,2]
[354349078,1740438668862,-3916.14,0.0001452,2]
[354349079,1740438668871,-7866.05433395,0.0001452,2]
[354349080,1740438669050,-1573.26566605,0.0001452,2]
[354349081,1740438669060,-500.0,0.0001452,2]
[354349082,1740438669071,-500.0,0.0001452,2]
[354349083,1740438669082,-649.39,0.0001452,2]
[354349084,1740438669092,-824.14,0.0001452,2]
[354349085,1740438669101,-886.14,0.0001452,2]
[354349086,1740438669112,-663.35,0.0001452,2]
[354349087,1740438669122,-500.0,0.0001452,2]
[354349088,1740438669131,-725.8,0.0001452,2]
[354349089,1740438669142,-500.0,0.0001452,2]
[354349090,1740438669152,-500.0,0.0001452,2]
[354349091,1740438669161,-500.0,0.0001452,2]
[354349092,1740438669171,-11569.59,0.0001452,2]
[354349093,1740438669182,-500.0,0.0001452,2]
[354349094,1740438669192,-500.0,0.0001452,2]
[354349095,1740438669202,-596.6,0.0001452,2]
[354349096,1740438669212,-500.0,0.0001452,2]
[354349097,1740438669222,-1037.02,0.0001452,2]
[354349098,1740438669232,-500.0,0.0001452,2]
[354349099,1740438669242,-520.28,0.0001452,2]
[354349100,1740438669251,-500.0,0.0001452,2]
[354349101,1740438669262,-500.0,0.0001452,2]
[354349102,1740438669273,-2568.48,0.0001452,2]
[354349103,1740438669283,-500.0,0.0001452,2]
[354349104,1740438669294,-569.69,0.0001452,2]
[354349105,1740438669304,-2001.57,0.0001452,2]
[354349106,1740438669314,-500.0,0.0001452,2]
[354349107,1740438669324,-500.0,0.0001452,2]
[354349108,1740438669333,-500.0,0.0001452,2]
[354349109,1740438669343,-1066.8,0.0001452,2]
[354349110,1740438669353,-1179.01,0.0001452,2]
[354349111,1740438669364,-914.26,0.0001452,2]
[354349112,1740438669373,-554.2,0.0001452,2]
[354349113,1740438669384,-548.71731107,0.0001452,2]
[354349114,1740438669400,-4845.71,0.0001452,2]
[354349115,1740438669411,-1651.45,0.0001452,2]
[354349116,1740438669422,-500.0,0.0001452,2]
[354349117,1740438669432,-640.92,0.0001452,2]
[354349118,1740438669442,-629.83,0.0001452,2]
[354349119,1740438669452,-500.0,0.0001452,2]
[354349120,1740438669461,-500.0,0.0001452,2]
[354349121,1740438669471,-2353.75,0.0001452,2]
[354349122,1740438669481,-500.0,0.0001452,2]
[354349123,1740438669491,-500.0,0.00014602,2]
[354349124,1740438669500,-151.0,0.00014602,2]
[354349125,1740438669510,-500.0,0.00014602,2]
[354349126,1740438669521,-500.0,0.00014602,2]
[354349127,1740438669531,-314.85,0.00014602,2]
[354349128,1740438669541,-555.51,0.00014602,2]
[354349129,1740438669551,-500.0,0.00014602,2]
[354349130,1740438669562,-574.28289416,0.00014602,2]
[354349131,1740438669572,-500.0,0.00014602,2]
[354349132,1740438669583,-500.0,0.00014602,2]
[354349133,1740438669593,-500.0,0.00014602,2]
[354349134,1740438669603,-465.6081112,0.00014602,2]
[354349135,1740438669616,-34.3918888,0.00014602,2]
[354349136,1740438669627,-579.61,0.00014602,2]
[354349137,1740438669640,-500.0,0.00014602,2]
[354349138,1740438669651,-622.33,0.00014602,2]
[354349139,1740438669661,-500.0,0.00014602,2]
[354349140,1740438669672,-500.0,0.00014602,2]
[354349141,1740438669681,-500.0,0.00014602,2]
[354349142,1740438669692,-500.0,0.00014602,2]
[354349143,1740438669701,-500.0,0.00014602,2]
[354349144,1740438669711,-364.39935078,0.00014602,2]
[354349145,1740438669720,-500.0,0.00014602,2]
[354349146,1740438669730,-500.0,0.00014602,2]
[354349147,1740438669739,-947.21,0.00014602,2]
[354349148,1740438669750,-500.0,0.00014602,2]
[354349149,1740438669759,-500.0,0.00014602,2]
[354349150,1740438669769,-695.76,0.00014602,2]
[354349151,1740438669779,-500.0,0.00014602,2]
[354349152,1740438669788,-500.0,0.00014602,2]
[354349153,1740438669798,-419.58891092,0.00014602,2]
[354349154,1740438669902,-500.0,0.00014602,2]
[354349155,1740438669926,-642.26,0.00014602,2]
[354349156,1740438669936,-500.0,0.00014602,2]
[354349157,1740438669945,-500.0,0.00014602,2]
[354349158,1740438669955,-868.34489019,0.00014602,2]
[354349159,1740438669966,-2272.54510981,0.00014602,2]
[354349160,1740438669976,-2660.68832269,0.00014602,2]
[354349161,1740438669988,-2399.29167731,0.00014602,2]
[354349162,1740438669997,-36606.72,0.00014602,2]
[354349163,1740438670007,-618.53,0.00014602,2]
[354349164,1740438670016,-504.78,0.00014602,2]
[354349165,1740438670032,-1443.33,0.00014602,2]
[354349166,1740438670042,-567.72,0.00014602,2]
[354349167,1740438670052,-367.27694483,0.00014602,2]
[354349168,1740438670062,-2659.86,0.00014602,2]
[354349169,1740438670074,-500.0,0.00014602,2]
[354349170,1740438670084,-1173.9,0.00014602,2]
[354349171,1740438670094,-1578.42,0.00014602,2]
[354349172,1740438670103,-761.51,0.00014602,2]
[354349173,1740438670115,-807.98,0.00014602,2]
[354349174,1740438670125,-500.0,0.00014602,2]
[354349175,1740438670134,-3916.14,0.00014602,2]
[354349176,1740438670147,-9439.32,0.00014602,2]
[354349177,1740438670157,-500.0,0.00014602,2]
[354349178,1740438670168,-649.39,0.00014602,2]
[354349179,1740438670178,-824.14,0.00014602,2]
[354349180,1740438670188,-151.0,0.00014602,2]
[354349181,1740438670198,-886.14,0.00014602,2]
[354349182,1740438670209,-663.35,0.00014602,2]
[354349183,1740438670219,-151.0,0.00014602,2]
[354349184,1740438670229,-500.0,0.00014602,2]
[354349185,1740438670239,-725.8,0.00014602,2]
[354349186,1740438670250,-500.0,0.00014602,2]
[354349187,1740438670260,-500.0,0.00014602,2]
[354349188,1740438670271,-4.40137786,0.00014602,2]
[354349189,1740438670283,-2494.11048235,0.00014602,2]
[354349190,1740438670295,-1390.52583648,0.00014602,2]
[354349191,1740438670590,-500.0,0.0001378,2]
[354349192,1740438670600,-500.0,0.00013863,2]
[354349193,1740438670610,-500.0,0.00013945,2]
[354349194,1740438670621,-7680.55230331,0.00014602,2]
[354349195,1740438670630,-500.0,0.00014602,2]
[354349196,1740438670644,-367.234333,0.00014602,2]
[354349197,1740438670654,-367.234333,0.00014602,2]
[354349198,1740438670664,-500.0,0.00014602,2]
[354349199,1740438670674,-500.0,0.00014602,2]
[354349200,1740438670683,-1037.02,0.00014602,2]
[354349201,1740438670694,-151.0,0.00014602,2]
[354349202,1740438670704,-151.0,0.00014602,2]
[354349203,1740438670714,-520.28,0.00014602,2]
[354349204,1740438670724,-151.0,0.00014602,2]
[354349205,1740438670734,-500.0,0.00014602,2]
[354349206,1740438670747,-500.0,0.00014602,2]
[354349207,1740438670757,-2568.48,0.00014602,2]
[354349208,1740438670767,-500.0,0.00014602,2]
[354349209,1740438670778,-151.0,0.00014602,2]
[354349210,1740438670788,-569.69,0.00014602,2]
[354349211,1740438670798,-151.0,0.00014602,2]
[354349212,1740438670809,-2001.57,0.00014602,2]
[354349213,1740438670819,-294.502386,0.00014602,2]
[354349214,1740438670830,-500.0,0.00014602,2]
[354349215,1740438670841,-500.0,0.00014602,2]
[354349216,1740438670851,-500.0,0.00014602,2]
[354349217,1740438670861,-1066.8,0.00014602,2]
[354349218,1740438670871,-1179.01,0.00014602,2]
[354349219,1740438670882,-914.26,0.00014602,2]
[354349220,1740438670896,-151.0,0.00014602,2]
[354349221,1740438670906,-151.0,0.00014602,2]
[354349222,1740438670917,-151.0,0.00014602,2]
[354349223,1740438670927,-554.2,0.00014602,2]
[354349224,1740438670937,-151.0,0.00014602,2]
[354349225,1740438670947,-4845.71,0.00014602,2]
[354349226,1740438670956,-1651.45,0.00014602,2]
[354349227,1740438670966,-500.0,0.00014602,2]
[354349228,1740438670976,-640.92,0.00014602,2]
[354349229,1740438670986,-629.83,0.00014602,2]
[354349230,1740438670995,-500.0,0.00014602,2]
[354349231,1740438671005,-151.0,0.00014602,2]
[354349232,1740438671015,-500.0,0.00014602,2]
[354349233,1740438671025,-2353.75,0.00014602,2]
[354349234,1740438671036,-500.0,0.00014602,2]
[354349235,1740438671046,-174.056845,0.00014684,2]
[354349236,1740438671055,-500.0,0.00014684,2]
[354349237,1740438671065,-500.0,0.00014684,2]
[354349238,1740438671074,-500.0,0.00014684,2]
[354349239,1740438671085,-555.51,0.00014684,2]
[354349240,1740438671095,-340.22,0.00014684,2]
[354349241,1740438671104,-500.0,0.00014684,2]
[354349242,1740438671116,-500.0,0.00014684,2]
[354349243,1740438671126,-500.0,0.00014684,2]
[354349244,1740438671139,-579.61,0.00014684,2]
[354349245,1740438671149,-500.0,0.00014684,2]
[354349246,1740438671159,-622.33,0.00014684,2]
[354349247,1740438671169,-500.0,0.00014684,2]
[354349248,1740438671179,-500.0,0.00014684,2]
[354349249,1740438671188,-500.0,0.00014684,2]
[354349250,1740438671197,-500.0,0.00014684,2]
[354349251,1740438671207,-151.0,0.00014684,2]
[354349252,1740438671216,-947.21,0.00014684,2]
[354349253,1740438671226,-500.0,0.00014684,2]
[354349254,1740438671235,-695.76,0.00014684,2]
[354349255,1740438671245,-500.0,0.00014684,2]
[354349256,1740438671255,-500.0,0.00014684,2]
[354349257,1740438671264,-151.0,0.00014684,2]
[354349258,1740438671274,-642.26,0.00014684,2]
[354349259,1740438671284,-500.0,0.00014684,2]
[354349260,1740438671293,-151.0,0.00014684,2]
[354349261,1740438671303,-500.0,0.00014684,2]
[354349262,1740438671312,-4014.37121692,0.00014684,2]
[354349263,1740438671325,-2565.54491867,0.00014684,2]
[354349264,1740438671337,-30026.80386441,0.00014684,2]